bitfinex/quotes_ETHUSD_20250815
["timestamp","ask_amount","ask_price","bid_price","bid_amount"]
[1755249690552,9.54776614,4645.7,4645.6,0.0008]
[1755249692085,10.00798063,4645.7,4645.6,0.0008]
[1755249692386,10.00718063,4645.7,4645.6,0.0008]
[1755249692586,11.22314372,4645.7,4645.6,0.0008]
[1755249693585,11.22514372,4645.7,4645.6,0.0008]
[1755249700295,11.80021601,4645.7,4645.6,0.0008]
[1755249702899,11.22514372,4645.7,4645.6,0.0008]
[1755249703601,10.29734372,4645.7,4645.6,0.0008]
[1755249703992,10.75794372,4645.7,4645.6,0.0008]
[1755249704802,11.22514372,4645.7,4645.6,0.0008]
[1755249705607,11.22514372,4645.7,4644.5,0.001]
[1755249705608,3.0,4645.6,4644.5,0.001]
[1755249705772,3.273,4645.5,4644.5,0.001]
[1755249706092,2.15299158,4644.7,4644.5,0.001]
[1755249706284,5.45715439,4644.7,4644.5,0.001]
[1755249706590,5.43699158,4644.7,4644.5,0.001]
[1755249707061,2.15299158,4644.7,4644.5,0.001]
[1755249707261,5.43799158,4644.7,4644.5,0.001]
[1755249709595,3.289,4644.7,4644.6,0.4995]
[1755249709799,3.289,4644.7,4644.6,0.9569]
[1755249710461,5.44199158,4644.7,4644.6,0.9569]
[1755249710863,5.44199158,4644.7,4644.6,0.001]
[1755249711058,2.15299158,4644.7,4644.6,0.001]
[1755249711486,5.44099158,4644.7,4644.6,0.001]
[1755249711801,2.15299158,4644.7,4644.6,0.001]
[1755249712003,5.44099158,4644.7,4644.6,0.001]
[1755249712500,5.43999158,4644.7,4644.6,0.001]
[1755249714974,3.287,4644.7,4644.6,0.001]
[1755249715502,5.43999158,4644.7,4644.6,0.001]
[1755249715699,0.108,4644.7,4644.6,0.001]
[1755249715913,3.395,4644.7,4644.6,0.4616]
[1755249716082,3.395,4644.7,4644.6,0.001]
[1755249716282,5.54799158,4644.7,4644.6,0.001]
[1755249716691,2.26099158,4644.7,4644.6,0.001]
[1755249716890,5.54699158,4644.7,4644.6,0.001]
[1755249717306,2.26099158,4644.7,4644.6,0.001]
[1755249717677,5.54699158,4644.7,4644.6,0.001]
[1755249717890,2.26099158,4644.7,4644.6,0.001]
[1755249718087,5.54699158,4644.7,4644.6,0.001]
[1755249720079,6.49699158,4644.7,4644.6,0.001]
[1755249720410,7.36198202,4644.7,4644.6,0.001]
[1755249720924,7.82260897,4644.7,4644.6,0.001]
[1755249722520,10.82260897,4644.7,4644.6,0.001]
[1755249722921,10.90887697,4644.7,4644.6,0.001]
[1755249725182,11.48406871,4644.7,4644.6,0.001]
[1755249726497,10.90887697,4644.7,4644.6,0.001]
[1755249730732,11.45887697,4644.7,4644.6,1e-08]
[1755249731588,5.70303793,4644.6,4644.5,1e-08]
[1755249731810,7.63180947,4644.6,4644.5,1e-08]
[1755249732431,7.91794455,4644.6,4644.5,1e-08]
[1755249733115,9.14534032,4644.6,4644.5,1e-08]
[1755249733324,14.31634032,4644.6,4644.5,1e-08]
[1755249734286,15.24172442,4644.6,4644.5,1e-08]
[1755249734486,15.71212442,4644.6,4644.5,1e-08]
[1755249734686,16.19092442,4644.6,4644.5,1e-08]
[1755249735782,15.24092442,4644.6,4644.5,1e-08]
[1755249736417,11.95692442,4644.6,4644.5,1e-08]
[1755249736621,15.24192442,4644.6,4644.5,1e-08]
[1755249736922,12.53215,4644.6,4644.5,1e-08]
[1755249737128,15.81715,4644.6,4644.5,1e-08]
[1755249737937,16.28835,4644.6,4644.5,1e-08]
[1755249738289,15.71312442,4644.6,4644.5,1e-08]
[1755249738486,16.19192442,4644.6,4644.5,1e-08]
[1755249740026,15.24192442,4644.6,4644.5,1e-08]
[1755249740423,15.81713797,4644.6,4644.5,1e-08]
[1755249740626,15.81633797,4644.6,4644.5,0.00080001]
[1755249741936,16.24753797,4644.6,4644.5,0.00080001]
[1755249742113,15.67232442,4644.6,4644.5,0.00080001]
[1755249742705,16.15312442,4644.6,4644.5,0.00080001]
[1755249743132,15.67232442,4644.6,4644.5,0.00080001]
[1755249744543,16.15312442,4644.6,4644.5,0.00080001]
[1755249746152,16.70312442,4644.6,4644.5,0.00080001]
[1755249746759,16.90302687,4644.6,4644.5,0.0008]
[1755249746972,2.15345521,4643.7,4643.6,0.001]
[1755249747144,9.17013978,4643.7,4643.6,0.001]
[1755249747325,9.27813978,4643.7,4643.6,0.001]
[1755249747726,9.36443178,4643.7,4643.6,0.001]
[1755249748723,9.98473921,4643.7,4643.6,0.001]
[1755249749256,10.89673921,4643.7,4643.6,0.001]
[1755249749465,9.98473921,4643.7,4643.6,0.001]
[1755249749622,9.98373921,4643.7,4643.6,0.001]
[1755249752364,10.41493921,4643.7,4643.6,0.001]
[1755249752798,9.98373921,4643.7,4643.6,0.001]
[1755249754189,10.41493921,4643.7,4643.6,0.001]
[1755249754997,9.98373921,4643.7,4643.6,0.001]
[1755249755186,10.55939884,4643.7,4643.6,0.001]
[1755249755488,7.27439884,4643.7,4643.6,0.001]
[1755249755688,10.55739884,4643.7,4643.6,0.001]
[1755249756305,9.98173921,4643.7,4643.6,0.001]
[1755249756874,10.41293921,4643.7,4643.6,0.001]
[1755249757307,9.98173921,4643.7,4643.6,0.001]
[1755249758588,10.41293921,4643.7,4643.6,0.001]
[1755249758797,10.55825057,4643.7,4643.6,0.001]
[1755249759157,10.98945057,4643.7,4643.6,0.001]
[1755249759781,10.98845057,4643.7,4643.6,0.001]
[1755249760158,9.98073921,4643.7,4643.6,0.001]
[1755249762318,10.55720594,4643.7,4643.6,0.001]
[1755249762912,7.27520594,4643.7,4643.6,0.001]
[1755249763115,10.55620594,4643.7,4643.6,0.001]
[1755249764844,10.98740594,4643.7,4643.6,0.001]
[1755249765325,10.55620594,4643.7,4643.6,0.001]
[1755249765508,10.98740594,4643.7,4643.6,0.001]
[1755249766146,7.27520594,4643.7,4643.6,0.001]
[1755249766357,10.55520594,4643.7,4643.6,0.001]
[1755249766763,7.27520594,4643.7,4643.6,0.001]
[1755249767056,10.55420594,4643.7,4643.6,0.001]
[1755249767544,10.39452546,4643.7,4643.6,0.001]
[1755249767842,7.11552546,4643.7,4643.6,0.001]
[1755249768048,10.39452546,4643.7,4643.6,0.001]
[1755249768342,9.66384089,4643.7,4643.6,0.001]
[1755249768644,9.66384089,4643.7,4643.6,0.9231]
[1755249768949,6.38484089,4643.7,4643.6,0.9231]
[1755249769151,9.66384089,4643.7,4643.6,0.9231]
[1755249769349,9.66484089,4643.7,4643.6,0.9231]
[1755249769546,6.38484089,4643.7,4643.6,0.9231]
[1755249769745,9.08837416,4643.7,4643.6,0.9231]
[1755249770611,9.08837416,4643.7,4643.6,0.001]
[1755249771052,9.08737416,4643.7,4643.6,0.001]
[1755249771653,9.66384089,4643.7,4643.6,0.001]
[1755249772617,6.38484089,4643.7,4643.6,0.9306]
[1755249772823,9.57754889,4643.7,4643.6,0.9306]
[1755249773047,9.57754889,4643.7,4643.6,0.001]
[1755249774222,9.00108216,4643.7,4643.6,0.001]
[1755249775759,2.72208216,4643.7,4643.6,0.001]
[1755249775962,0.56862695,4643.7,4643.6,0.4899]
[1755249776170,3.84562695,4643.7,4643.6,0.9306]
[1755249776537,3.73762695,4643.7,4643.6,0.9306]
[1755249776873,3.84482695,4643.7,4643.6,0.9306]
[1755249777269,0.56782695,4643.7,4643.6,0.9306]
[1755249777568,3.386,4643.7,4643.6,1.23912203]
[1755249777737,0.002,4644.1,4643.6,0.9306]
[1755249777937,0.108,4643.9,4643.6,0.001]
[1755249778138,3.278,4643.8,4643.7,0.9296]
[1755249778339,3.278,4643.8,4643.7,1.23811824]
[1755249778974,3.278,4643.8,4643.7,0.9296]
[1755249780375,2.15345521,4643.7,4643.6,0.001]
[1755249780673,2.15345521,4643.7,4643.6,0.4899]
[1755249781238,3.278,4643.8,4643.6,0.4899]
[1755249781460,3.278,4643.8,4643.6,0.9306]
[1755249781675,5.43145297,4643.8,4643.6,0.9306]
[1755249781879,2.15345521,4643.7,4643.6,0.9306]
[1755249782239,2.15345521,4643.7,4643.6,0.001]
[1755249782643,5.43141105,4643.8,4643.6,0.001]
[1755249782842,2.15345521,4643.7,4643.6,0.001]
[1755249783345,5.15345521,4643.7,4643.6,0.001]
[1755249785851,5.62055521,4643.7,4643.6,0.001]
[1755249786285,5.15345521,4643.7,4643.6,0.001]
[1755249787172,5.62055521,4643.7,4643.6,0.001]
[1755249787679,5.70683321,4643.7,4643.6,0.001]
[1755249788793,5.23973321,4643.7,4643.6,0.001]
[1755249790373,5.70069456,4643.7,4643.6,0.001]
[1755249790696,5.70069456,4643.7,4643.6,0.0018]
[1755249794262,3.84496135,4643.7,4643.6,0.9314]
[1755249795963,0.108,4643.7,4643.6,1.2400034]
[1755249796179,3.384,4643.7,4643.6,0.9314]
[1755249801698,3.384,4643.7,4643.6,0.4907]
[1755249801898,3.384,4643.7,4643.6,0.0018]
[1755249804220,3.276,4643.7,4643.6,0.9254]
[1755249805013,0.002,4643.8,4643.6,0.9254]
[1755249805317,0.002,4643.8,4643.6,0.0018]
[1755249805519,3.276,4643.7,4643.6,0.0018]
[1755249805724,0.002,4643.8,4643.7,0.4576]
[1755249806019,3.278,4643.8,4643.7,0.9236]
[1755249806315,0.002,4643.8,4643.7,0.48753455]
[1755249806613,3.278,4643.8,4643.7,3.07705521]
[1755249806824,3.278,4643.8,4643.7,3.62195657]
[1755249807191,0.002,4643.8,4643.7,3.62195657]
[1755249807527,3.278,4643.8,4643.7,3.62195657]
[1755249808314,3.278,4643.8,4643.7,1.01090136]
[1755249808513,3.278,4643.8,4643.6,0.1098]
[1755249812619,3.278,4643.8,4643.6,0.0018]
[1755249812918,0.4381,4643.7,4643.6,0.0018]
[1755249813089,3.278,4643.8,4643.6,0.0018]
[1755249815031,0.002,4643.8,4643.6,2.15528422]
[1755249815234,0.002,4643.8,4643.7,2.61945521]
[1755249815433,3.277,4643.8,4643.7,0.9236]
[1755249815593,3.277,4643.8,4643.7,0.4668]
[1755249815794,3.277,4643.8,4643.7,0.0008]
[1755249816429,0.002,4643.8,4643.7,0.0008]
[1755249816628,3.277,4643.8,4643.7,0.0008]
[1755249816824,0.002,4643.8,4643.7,0.0008]
[1755249817025,3.277,4643.8,4643.7,0.22723838]
[1755249817825,4.1918,4643.8,4643.7,0.0008]
[1755249818030,3.277,4643.8,4643.7,0.0008]
[1755249819112,3.2762,4643.8,4643.7,0.0008]
[1755249825412,5.86770884,4643.8,4643.7,0.0008]
[1755249825613,6.34440884,4643.8,4643.7,0.0008]
[1755249826314,5.86770884,4643.8,4643.7,0.0008]
[1755249826632,10.25471195,4643.8,4643.7,0.0008]
[1755249826819,10.34099295,4643.8,4643.7,0.0008]
[1755249827835,2.15350159,4643.6,4643.5,0.001]
[1755249828134,8.4486644,4643.6,4643.5,0.001]
[1755249828301,8.42850159,4643.6,4643.5,1e-08]
[1755249828502,10.38476046,4643.6,4643.5,1e-08]
[1755249829113,11.61561718,4643.6,4643.5,1e-08]
[1755249830023,10.84683077,4643.6,4643.5,1e-08]
[1755249830733,10.93312477,4643.6,4643.5,1e-08]
[1755249832040,11.50949097,4643.6,4643.5,1e-08]
[1755249834634,10.93312477,4643.6,4643.5,1e-08]
[1755249840552,10.93312477,4643.6,4643.5,0.00080001]
[1755249842044,7.65812477,4643.6,4643.5,0.00080001]
[1755249842352,16.10612477,4643.6,4643.5,0.00080001]
[1755249843355,16.10612477,4643.6,4642.6,0.001]
[1755249843356,2.15387266,4642.8,4642.6,0.001]
[1755249843515,6.79138727,4642.7,4642.6,0.001]
[1755249843718,8.94530632,4642.7,4642.6,0.001]
[1755249844158,9.16130632,4642.7,4642.6,0.001]
[1755249844362,9.61470632,4642.7,4642.6,0.001]
[1755249845562,10.07677663,4642.7,4642.6,0.001]
[1755249846253,9.78294623,4642.7,4642.6,0.001]
[1755249846957,6.50694623,4642.7,4642.6,0.001]
[1755249847124,9.78294623,4642.7,4642.6,0.001]
[1755249847489,6.34737663,4642.7,4642.6,0.001]
[1755249847639,9.10798936,4642.7,4642.6,0.001]
[1755249851828,5.83198936,4642.7,4642.6,0.001]
[1755249852165,9.10798936,4642.7,4642.6,0.001]
[1755249852370,5.83198936,4642.7,4642.6,0.001]
[1755249852660,8.99998936,4642.7,4642.6,0.4542]
[1755249852875,8.99998936,4642.7,4642.6,0.001]
[1755249853532,8.53791905,4642.7,4642.6,0.001]
[1755249853762,9.79362216,4642.7,4642.6,0.001]
[1755249853946,10.25932216,4642.7,4642.6,0.001]
[1755249854123,10.90661816,4642.7,4642.6,0.001]
[1755249854970,10.90661816,4642.7,4641.6,0.001]
[1755249854971,2.15419295,4642.2,4641.6,0.001]
[1755249855175,0.108,4641.7,4641.6,0.001]
[1755249855395,8.53838309,4641.7,4641.6,0.001]
[1755249855685,9.45748309,4641.7,4641.6,0.001]
[1755249855837,10.10491409,4641.7,4641.6,0.001]
[1755249856039,10.56561077,4641.7,4641.6,0.001]
[1755249856315,11.39165034,4641.7,4641.6,0.001]
[1755249856507,7.08855034,4641.7,4641.6,0.001]
[1755249856706,10.47255034,4641.7,4641.6,0.001]
[1755249857011,11.39165034,4641.7,4641.6,0.001]
[1755249857143,10.47255034,4641.7,4641.6,0.001]
[1755249857345,9.64651077,4641.7,4641.6,0.001]
[1755249857562,6.37051077,4641.7,4641.6,0.001]
[1755249857769,9.64651077,4641.7,4641.6,0.001]
[1755249858153,6.37051077,4641.7,4641.6,0.001]
[1755249858369,8.99907977,4641.7,4641.6,0.001]
[1755249860478,5.72307977,4641.7,4641.6,0.001]
[1755249860779,8.99907977,4641.7,4641.6,0.001]
[1755249861356,8.99827977,4641.7,4641.6,0.001]
[1755249861753,9.45167977,4641.7,4641.6,0.001]
[1755249862183,9.94777977,4641.7,4641.6,0.001]
[1755249862763,8.99827977,4641.7,4641.6,0.001]
[1755249862960,9.93087977,4641.7,4641.6,0.001]
[1755249863849,5.72227977,4641.7,4641.6,0.001]
[1755249864055,8.99827977,4641.7,4641.6,0.001]
[1755249864351,9.08460177,4641.7,4641.6,0.001]
[1755249864550,5.80860177,4641.7,4641.6,0.001]
[1755249864756,9.08460177,4641.7,4641.6,0.001]
[1755249866911,9.52110177,4641.7,4641.6,0.001]
[1755249867504,9.90920177,4641.7,4641.6,1e-08]
[1755249867874,9.41310177,4641.7,4641.6,1e-08]
[1755249868389,8.97660177,4641.7,4641.6,1e-08]
[1755249868573,9.41310177,4641.7,4641.6,1e-08]
[1755249869167,9.90920177,4641.7,4641.6,1e-08]
[1755249871262,2.15456876,4641.3,4641.1,1e-08]
[1755249871472,21.90595,4641.2,4641.1,1e-08]
[1755249871671,22.81838719,4641.2,4641.1,1e-08]
[1755249872310,23.0185094,4641.2,4641.1,1e-08]
[1755249873112,23.47920608,4641.2,4641.1,1e-08]
[1755249874010,24.63238569,4641.2,4641.1,1e-08]
[1755249874214,25.18238569,4641.2,4641.1,1e-08]
[1755249874710,25.83001769,4641.2,4641.1,1e-08]
[1755249874883,11.44224568,4641.2,4641.1,1e-08]
[1755249875077,11.87874568,4641.2,4641.1,1e-08]
[1755249875402,13.77817712,4641.2,4641.1,1e-08]
[1755249876181,27.52337172,4641.2,4641.1,1e-08]
[1755249877530,27.63137172,4641.2,4641.1,1e-08]
[1755249877693,0.55,4641.0,4639.1,0.8995]
[1755249878017,0.108,4639.2,4639.1,0.8995]
[1755249878223,5.54654405,4639.2,4639.1,0.8995]
[1755249878418,3.391,4639.2,4639.1,0.8995]
[1755249879209,5.54654405,4639.2,4639.1,0.8995]
[1755249879411,3.391,4639.2,4638.2,0.108]
[1755249879615,2.1557164,4638.9,4638.6,0.4399]
[1755249879797,3.391,4639.2,4638.3,0.4596]
[1755249879798,2.1557764,4638.7,4638.3,0.4596]
[1755249879988,3.283,4638.6,4638.3,0.8995]
[1755249880192,2.15564657,4639.0,4638.4,0.8995]
[1755249880413,3.283,4638.9,4638.5,0.8995]
[1755249880614,0.108,4638.4,4638.3,0.53196094]
[1755249880821,3.394,4638.4,4638.1,2.15604353]
[1755249880989,3.394,4638.4,4637.8,0.108]
[1755249881196,3.394,4638.4,4638.0,0.8995]
[1755249881197,5.44193244,4638.4,4638.0,0.8995]
[1755249881400,2.15597591,4638.3,4638.1,0.8995]
[1755249881731,5.15558802,4639.2,4637.7,0.11352186]
[1755249881732,3.285,4638.2,4637.7,0.11352186]
[1755249881927,3.285,4638.1,4637.8,2.15615152]
[1755249882133,3.285,4638.1,4637.9,0.02156148]
[1755249882433,3.285,4638.1,4637.9,0.8995]
[1755249882929,3.285,4638.1,4638.0,0.4399]
[1755249883122,3.285,4638.1,4638.0,0.8995]
[1755249883328,3.287,4638.1,4638.0,0.8995]
[1755249883498,3.287,4638.1,4638.0,1.24829802]
[1755249883703,3.287,4638.1,4638.0,0.8995]
[1755249885328,3.287,4638.1,4638.0,3.05560176]
[1755249885527,3.287,4638.1,4638.0,0.8995]
[1755249885826,3.287,4638.1,4638.0,3.05560176]
[1755249886010,3.287,4638.2,4638.0,14.35467201]
[1755249886337,2.1554527,4639.4,4638.2,2.15600621]
[1755249886552,3.287,4639.3,4638.6,2.15581919]
[1755249886847,5.28579999,4639.8,4638.7,0.92105776]
[1755249887052,3.287,4639.7,4638.2,0.4399]
[1755249887225,2.15542003,4639.5,4638.3,2.82893977]
[1755249887426,2.15542003,4639.5,4638.4,0.8995]
[1755249887632,3.288,4639.4,4638.5,3.05532314]
[1755249887955,3.288,4639.3,4638.6,3.05530641]
[1755249888171,3.288,4639.3,4638.7,1.20503064]
[1755249888455,3.288,4639.2,4638.9,2.15568345]
[1755249888616,2.15531786,4639.7,4638.9,2.15568345]
[1755249888820,3.288,4639.6,4639.0,0.8995]
[1755249889260,3.288,4639.6,4639.0,3.05513246]
[1755249889457,3.288,4639.6,4639.1,2.46109105]
[1755249889631,3.288,4639.6,4639.1,0.30551325]
[1755249889952,3.288,4639.6,4639.1,0.76511325]
[1755249890154,7.44107449,4639.8,4639.1,0.76511325]
[1755249890359,5.44331294,4639.7,4639.1,0.76511325]
[1755249890738,3.288,4639.7,4639.1,0.76511325]
[1755249890942,5.28579999,4639.8,4639.1,0.76511325]
[1755249891267,0.108,4639.6,4639.1,2.61518416]
[1755249891561,0.108,4639.6,4639.2,0.4596]
[1755249892365,0.11079999,4639.8,4639.3,0.8923]
[1755249892528,3.287,4639.5,4639.4,2.15545113]
[1755249892724,3.287,4639.5,4639.4,3.04775113]
[1755249893027,3.287,4639.5,4639.4,3.57888044]
[1755249893575,3.287,4639.5,4639.4,1.42342931]
[1755249893744,3.287,4639.5,4638.7,2.15573848]
[1755249894061,3.287,4639.5,4638.9,0.108]
[1755249894229,0.108,4639.3,4638.2,2.15597935]
[1755249894430,0.108,4639.0,4638.3,0.108]
[1755249894646,3.289,4638.9,4638.3,0.42372794]
[1755249894843,3.289,4638.9,4638.3,0.108]
[1755249895230,3.289,4638.9,4638.0,0.001]
[1755249895428,2.15592385,4638.4,4638.0,0.001]
[1755249895642,3.29,4638.3,4638.0,0.001]
[1755249897854,3.29,4638.3,4638.0,2.15708678]
[1755249898056,3.29,4638.3,4638.0,0.001]
[1755249898450,3.29,4638.3,4638.0,0.465]
[1755249898654,0.108,4638.5,4638.0,0.001]
[1755249898856,3.29,4638.4,4638.0,0.001]
[1755249899166,3.289,4638.3,4638.0,0.001]
[1755249899692,0.108,4638.2,4638.0,0.001]
[1755249899894,0.5801,4638.2,4638.0,0.001]
[1755249900400,0.9474,4638.1,4638.0,0.001]
[1755249900551,3.10345528,4638.1,4638.0,0.0018]
[1755249901401,0.9474,4638.1,4638.0,0.0018]
[1755249901585,0.108,4638.2,4638.0,0.0018]
[1755249902367,0.108,4638.2,4638.1,2.15605528]
[1755249902569,3.288,4638.2,4638.1,1.32370458]
[1755249902850,3.288,4638.2,4638.1,0.8923]
[1755249903050,3.288,4638.2,4638.1,0.464]
[1755249903288,3.288,4638.2,4638.0,0.0018]
[1755249903557,3.288,4638.2,4638.1,2.15605528]
[1755249903558,3.2872,4638.2,4638.1,2.15605528]
[1755249903758,3.2872,4638.2,4638.0,2.26409714]
[1755249904567,3.2872,4638.2,4638.1,2.15605528]
[1755249904982,0.108,4638.6,4638.1,2.15605528]
[1755249905299,3.288,4638.5,4638.2,2.15597556]
[1755249905687,3.288,4638.5,4638.4,2.15591583]
[1755249905883,0.108,4638.8,4638.4,0.21559158]
[1755249906199,3.287,4638.5,4638.4,2.15591583]
[1755249906362,3.287,4638.5,4638.2,2.15596401]
[1755249906562,3.287,4638.5,4638.1,2.1560209]
[1755249906998,3.287,4638.5,4638.0,0.108]
[1755249907173,3.287,4638.5,4638.1,2.15605187]
[1755249907368,0.4721,4638.4,4638.0,0.108]
[1755249907568,0.4721,4638.3,4638.0,0.108]
[1755249907771,0.9474,4638.3,4638.0,0.108]
[1755249907964,0.4721,4638.2,4638.0,0.108]
[1755249908165,3.287,4638.1,4638.0,0.108]
[1755249908686,3.287,4638.1,4638.0,2.26410176]
[1755249908891,3.287,4638.1,4638.0,2.70613577]
[1755249910198,0.108,4638.8,4638.1,2.15601145]
[1755249910367,3.286,4638.7,4638.1,2.15601145]
[1755249910564,0.108,4638.8,4638.2,2.15599336]
[1755249910900,3.285,4638.7,4638.2,2.15599336]
[1755249911102,3.285,4638.7,4638.2,2.64220861]
[1755249911522,3.285,4638.7,4638.3,2.15595198]
[1755249911725,3.285,4638.7,4638.2,2.1560021]
[1755249911887,3.285,4638.6,4638.2,2.15596812]
[1755249912081,3.285,4638.6,4638.3,0.108]
[1755249912822,0.4721,4638.9,4638.3,0.108]
[1755249913401,3.285,4638.8,4638.3,0.108]
[1755249913597,3.285,4638.8,4637.7,0.3574]
[1755249913598,2.15587644,4638.5,4637.5,2.1563293]
[1755249913800,3.285,4638.4,4638.0,0.108]
[1755249914203,0.4721,4638.3,4638.0,0.108]
[1755249914422,0.9474,4638.3,4638.0,0.108]
[1755249914725,0.9474,4638.2,4638.0,0.108]
[1755249915243,0.4721,4638.1,4638.0,0.108]
[1755249920729,3.284,4638.1,4638.0,2.26405822]
[1755249920926,3.284,4638.1,4638.0,0.55002473]
[1755249921233,3.283,4638.4,4638.0,0.2644]
[1755249921441,3.283,4638.4,4638.3,2.15596231]
[1755249921755,3.283,4638.4,4638.3,0.108]
[1755249923258,3.7306,4638.4,4637.9,2.1561422]
[1755249923459,3.7306,4638.4,4638.1,0.108]
[1755249923618,3.283,4638.4,4638.1,2.26402188]
[1755249924661,3.283,4638.4,4638.1,2.26404556]
[1755249924830,3.282,4638.3,4638.2,2.15599161]
[1755249925252,3.282,4638.3,4638.1,0.108]
[1755249925638,0.4476,4638.2,4638.1,0.108]
[1755249925860,0.9439,4638.2,4638.1,0.108]
[1755249926675,0.4476,4638.2,4638.1,0.108]
[1755249927257,0.5556,4638.7,4638.1,0.108]
[1755249927553,3.281,4638.6,4638.1,0.108]
[1755249927869,3.281,4638.5,4638.3,0.108]
[1755249928818,0.4476,4638.4,4638.3,0.108]
[1755249928953,3.283,4638.4,4638.3,2.15596231]
[1755249929158,3.283,4638.4,4638.3,2.47955854]
[1755249929358,3.283,4638.4,4638.3,0.32359623]
[1755249930073,3.7306,4638.4,4638.3,0.108]
[1755249930272,3.7306,4638.4,4637.9,2.15614805]
[1755249930273,2.15598486,4638.3,4637.8,0.108]
[1755249930445,5.93522117,4638.4,4637.8,0.108]
[1755249930671,0.9439,4638.2,4637.8,0.108]
[1755249931264,0.9439,4638.1,4637.8,0.108]
[1755249931477,3.288,4638.0,4637.8,0.108]
[1755249931656,4.2319,4638.0,4637.8,0.108]
[1755249931855,0.4476,4637.9,4637.6,0.108]
[1755249932051,0.4476,4637.8,4637.6,2.26427471]
[1755249932375,0.4963,4637.9,4637.6,0.108]
[1755249932692,0.4476,4637.8,4637.6,2.26427473]
[1755249933084,0.4476,4637.8,4637.6,0.108]
[1755249934277,0.4476,4637.8,4637.6,2.26427558]
[1755249934559,0.4476,4637.7,4637.6,0.108]
[1755249934991,0.108,4638.5,4637.6,0.73199592]
[1755249935151,3.287,4638.4,4637.7,2.15624124]
[1755249935359,0.9439,4638.3,4637.8,0.108]
[1755249935777,0.9439,4638.2,4637.8,0.108]
[1755249936182,5.55091813,4638.4,4637.8,0.108]
[1755249936401,0.9439,4638.1,4637.8,0.108]
[1755249936577,3.289,4638.0,4637.7,3.97562592]
[1755249936761,0.9439,4637.9,4637.7,3.97562592]
[1755249936956,0.4476,4637.9,4637.7,3.97562592]
[1755249937181,0.4476,4638.3,4637.7,3.97562592]
[1755249937395,3.289,4638.2,4637.7,3.97562592]
[1755249937591,0.4476,4638.1,4637.7,3.97562592]
[1755249937756,0.4476,4638.0,4637.7,6.13186699]
[1755249937962,0.4476,4637.9,4637.7,6.13186699]
[1755249938162,3.288,4637.8,4637.7,3.97562592]
[1755249938860,0.4476,4638.3,4637.7,6.13186716]
[1755249939057,3.288,4638.2,4637.8,2.15618359]
[1755249939454,0.108,4638.4,4637.8,2.15618147]
[1755249939694,3.287,4638.3,4637.9,0.02156148]
[1755249939857,3.287,4638.2,4637.9,2.15610284]
[1755249940053,3.287,4638.2,4638.0,0.02156101]
[1755249940289,0.108,4638.4,4637.9,2.1561068]
[1755249940490,3.287,4638.1,4637.9,2.1561068]
[1755249940688,3.287,4638.1,4638.0,2.15610176]
[1755249941861,0.002,4638.7,4637.9,2.99571178]
[1755249942194,0.002,4638.7,4638.1,2.15605528]
[1755249942195,3.287,4638.6,4638.1,2.15605528]
[1755249942383,3.287,4638.5,4638.1,2.15604728]
[1755249942760,3.287,4638.5,4638.0,2.26408026]
[1755249942966,3.287,4638.5,4638.2,2.15600593]
[1755249943359,3.287,4638.5,4638.3,2.15595757]
[1755249943564,0.002,4638.7,4638.4,2.15588733]
[1755249943764,3.287,4638.6,4638.4,2.15588733]
[1755249944197,3.287,4638.6,4638.3,0.108]
[1755249944496,3.287,4638.6,4638.3,2.2639617]
[1755249944974,3.287,4638.6,4638.3,2.26395927]
[1755249945494,3.7346,4638.6,4638.3,0.108]
[1755249945700,0.9439,4638.5,4638.3,0.108]
[1755249945996,0.4468,4638.5,4638.3,0.108]
[1755249946197,0.4468,4638.5,4638.3,2.26395269]
[1755249946663,3.287,4638.6,4638.3,2.26395269]
[1755249946863,3.287,4638.6,4638.3,2.26395484]
[1755249947087,3.287,4638.6,4638.3,0.108]
[1755249947487,3.289,4638.6,4638.3,0.108]
[1755249947793,3.289,4638.6,4638.3,2.26391671]
[1755249947998,0.002,4638.6,4638.3,2.26391671]
[1755249948164,3.286,4638.5,4638.4,2.15589088]
[1755249950594,0.0012,4638.6,4638.5,2.15586935]
[1755249950797,3.2852,4638.6,4638.5,2.17742804]
[1755249951004,3.2852,4638.6,4638.5,2.15586935]
[1755249951165,3.2852,4638.6,4638.5,2.59792974]
[1755249954295,3.2842,4638.6,4638.5,2.59792974]
[1755249955868,0.0012,4638.6,4638.5,2.59792974]
[1755249956067,3.2832,4638.6,4638.5,2.59792974]
[1755249958196,4.1778,4638.6,4638.5,2.59792974]
[1755249958368,4.1778,4638.6,4638.5,2.15586935]
[1755249959499,3.727,4638.6,4638.5,2.15586935]
[1755249959805,3.2832,4638.6,4638.5,2.15586935]
[1755249961905,3.2812,4638.6,4638.5,2.15586935]
[1755249962269,3.2812,4638.6,4638.5,6.13149527]
[1755249962477,3.2812,4638.6,4638.5,6.97112002]
[1755249963505,3.725,4638.6,4638.5,6.13149527]
[1755249963670,3.725,4638.6,4638.5,3.97562592]
[1755249963873,4.1758,4638.6,4638.5,3.97562592]
[1755249964575,4.1758,4638.6,4638.5,6.13149527]
[1755249966507,3.725,4638.6,4638.5,6.13149527]
[1755249967007,3.2812,4638.6,4638.5,6.13149527]
[1755249967306,3.2812,4638.6,4638.5,2.15586935]
[1755249968905,3.2812,4638.6,4638.5,1.85586935]
[1755249971015,3.725,4638.6,4638.5,1.85586935]